bitfinex-derivatives/quotes_BTCF0:USTF0_20250922
["timestamp","ask_amount","ask_price","bid_price","bid_amount"]
[1758505310611,0.0136,114800.0,114790.0,1.68632982]
[1758505311406,0.014,114800.0,114790.0,1.68632982]
[1758505311798,0.0004,114800.0,114790.0,1.68632982]
[1758505311998,0.0136,114810.0,114800.0,0.0870468]
[1758505312194,0.0144,114810.0,114800.0,0.88056652]
[1758505313509,0.0154,114810.0,114800.0,0.88056652]
[1758505313709,0.0154,114810.0,114800.0,0.51976652]
[1758505313899,0.0154,114810.0,114800.0,0.88056652]
[1758505314707,0.0154,114810.0,114800.0,0.30338006]
[1758505316910,0.39842,114810.0,114800.0,0.30338006]
[1758505317211,0.42154345,114810.0,114800.0,1.10666006]
[1758505317511,0.42154345,114810.0,114800.0,0.0870468]
[1758505317704,0.42154345,114810.0,114800.0,0.8902868]
[1758505318008,0.42154345,114810.0,114800.0,0.0870468]
[1758505318207,0.42154345,114810.0,114800.0,0.8902868]
[1758505318598,0.42154345,114810.0,114790.0,0.21673326]
[1758505318803,0.39683,114800.0,114790.0,0.30378766]
[1758505319012,0.39683,114800.0,114790.0,1.10662766]
[1758505319198,0.03603,114800.0,114790.0,1.10702766]
[1758505320614,0.03603,114800.0,114790.0,1.10902766]
[1758505321513,0.01381,114800.0,114790.0,1.10902766]
[1758505329816,0.39637,114810.0,114800.0,0.0870468]
[1758505330008,0.39637,114810.0,114800.0,0.30338006]
[1758505330517,0.03557,114810.0,114800.0,0.30338006]
[1758505330719,0.03557,114810.0,114800.0,0.0870468]
[1758505330919,0.03557,114810.0,114800.0,0.30338006]
[1758505331714,0.03657,114810.0,114800.0,0.30338006]
[1758505332117,0.0596967,114810.0,114800.0,0.30338006]
[1758505332823,0.0586967,114810.0,114800.0,0.30538006]
[1758505333023,0.0586967,114810.0,114800.0,1.10842006]
[1758505336827,0.0586967,114810.0,114800.0,0.30538006]
[1758505337020,0.88582996,114810.0,114800.0,0.002]
[1758505337723,0.6694967,114810.0,114800.0,0.0890468]
[1758505337919,0.88582996,114810.0,114800.0,0.0890468]
[1758505338625,0.6694967,114810.0,114800.0,0.30538006]
[1758505339623,0.4194967,114810.0,114800.0,0.30538006]
[1758505342431,0.5641967,114810.0,114800.0,0.30538006]
[1758505343531,0.0375267,114810.0,114800.0,0.91618006]
[1758505343734,0.0586967,114810.0,114800.0,0.91618006]
[1758505344026,0.03615,114810.0,114800.0,0.55538006]
[1758505344225,0.03655,114810.0,114800.0,0.55538006]
[1758505344425,0.03655,114810.0,114800.0,1.35822006]
[1758505344933,0.03655,114810.0,114800.0,0.55538006]
[1758505345231,0.05964481,114810.0,114800.0,1.35822006]
[1758505345429,0.05964456,114810.0,114800.0,1.35822006]
[1758505345618,0.03709456,114810.0,114800.0,1.35822006]
[1758505346926,0.03709456,114810.0,114800.0,0.252]
[1758505346927,0.20434456,114810.0,114800.0,0.252]
[1758505347236,0.20434456,114810.0,114770.0,0.0879695]
[1758505347237,0.03544,114780.0,114770.0,0.0879695]
[1758505347428,0.03544,114780.0,114770.0,0.30340276]
[1758505347630,0.39624,114780.0,114770.0,1.10660276]
[1758505348026,0.39624,114780.0,114770.0,0.0004]
[1758505348228,0.61257326,114780.0,114770.0,0.0004]
[1758505348531,0.88599651,114780.0,114770.0,0.014]
[1758505348733,0.88599651,114780.0,114770.0,0.0144]
[1758505348920,0.88599651,114780.0,114770.0,0.014]
[1758505349126,0.88599651,114780.0,114770.0,0.0144]
[1758505350029,0.86357326,114780.0,114770.0,0.0024]
[1758505350230,0.93325087,114780.0,114770.0,0.0024]
[1758505350532,0.71691761,114780.0,114770.0,0.0024]
[1758505350833,0.71691761,114780.0,114770.0,0.0894696]
[1758505351035,0.71691761,114780.0,114770.0,0.0874696]
[1758505352034,0.46691761,114780.0,114770.0,0.30380286]
[1758505354729,0.46691761,114780.0,114770.0,0.0874696]
[1758505355535,0.46691761,114780.0,114770.0,0.0004]
[1758505356026,0.46691761,114780.0,114770.0,0.0874696]
[1758505357034,0.46691761,114780.0,114770.0,0.30380286]
[1758505357536,0.68325087,114780.0,114770.0,0.0004]
[1758505357729,0.93325087,114780.0,114770.0,0.0004]
[1758505357928,0.01289,114760.0,114750.0,1.10621306]
[1758505358129,0.03544,114760.0,114750.0,0.8898798]
[1758505358432,0.39624,114760.0,114750.0,1.10621306]
[1758505358826,0.03544,114760.0,114750.0,1.10621306]
[1758505359030,0.39624,114760.0,114750.0,1.10621306]
[1758505359228,0.39624,114760.0,114750.0,1.11121306]
[1758505361733,0.39624,114760.0,114750.0,1.11117306]
[1758505362139,0.39624,114760.0,114750.0,0.30841306]
[1758505362338,0.39624,114760.0,114750.0,1.11117306]
[1758505362537,0.03544,114760.0,114750.0,1.11117306]
[1758505363343,0.04399365,114760.0,114750.0,1.11117306]
[1758505363638,0.40479365,114760.0,114750.0,0.30841306]
[1758505363839,0.40479365,114760.0,114750.0,1.11117306]
[1758505364339,0.04399365,114760.0,114750.0,1.11117306]
[1758505365039,0.62112691,114760.0,114750.0,0.005]
[1758505365738,0.62112691,114760.0,114750.0,0.0054]
[1758505368243,0.87112691,114760.0,114750.0,0.0054]
[1758505368541,0.87112691,114760.0,114750.0,0.005]
[1758505368738,0.87112691,114760.0,114750.0,0.0054]
[1758505368936,0.65479365,114760.0,114750.0,0.0054]
[1758505370738,0.03544,114740.0,114730.0,0.0001]
[1758505370936,0.03544,114710.0,114700.0,0.47007147]
[1758505371142,0.03544,114700.0,114690.0,0.70258236]
[1758505371443,0.03544,114700.0,114690.0,0.61545326]
[1758505371743,0.03544,114700.0,114690.0,0.86545326]
[1758505371943,0.39624,114700.0,114690.0,0.86585326]
[1758505372150,0.39624,114700.0,114690.0,0.95258356]
[1758505372440,0.03544,114700.0,114690.0,0.55886356]
[1758505372742,0.10380025,114700.0,114690.0,1.36154356]
[1758505372942,0.10380025,114700.0,114690.0,1.36114356]
[1758505373140,0.10380025,114700.0,114690.0,1.36154356]
[1758505373331,0.10380025,114700.0,114690.0,1.1452103]
[1758505373538,0.10380025,114700.0,114690.0,0.8952103]
[1758505373937,0.10380025,114700.0,114690.0,0.8948103]
[1758505374134,0.10380025,114700.0,114690.0,0.8952103]
[1758505374339,0.10380025,114700.0,114690.0,1.11154356]
[1758505374539,0.32058678,114700.0,114690.0,1.11199683]
[1758505374742,0.10380025,114700.0,114690.0,1.11199683]
[1758505375438,0.10380025,114700.0,114690.0,0.8952103]
[1758505375644,0.10380025,114700.0,114690.0,1.11199683]
[1758505375841,0.03544,114700.0,114690.0,1.11199683]
[1758505376241,0.03544,114700.0,114690.0,1.11211683]
[1758505376443,0.03544,114700.0,114690.0,0.8953303]
[1758505376645,0.03544,114700.0,114690.0,1.11211683]
[1758505376846,0.25222653,114700.0,114690.0,1.02498653]
[1758505377047,0.62166187,114700.0,114690.0,1.02498653]
[1758505378048,0.62166187,114700.0,114690.0,1.02458653]
[1758505378247,0.62166187,114700.0,114690.0,0.22218653]
[1758505378447,0.8384484,114700.0,114690.0,0.0054]
[1758505378743,1.10889388,114700.0,114690.0,0.0054]
[1758505378945,1.10889388,114700.0,114690.0,0.005]
[1758505379146,0.89210735,114700.0,114690.0,0.0054]
[1758505379344,1.10889388,114700.0,114690.0,0.005]
[1758505380050,1.10889388,114700.0,114690.0,0.0054]
[1758505380749,0.89210735,114700.0,114690.0,0.0054]
[1758505381450,0.89210735,114700.0,114690.0,0.22218653]
[1758505382342,0.67532082,114700.0,114690.0,0.22218653]
[1758505382542,0.89210735,114700.0,114690.0,0.22218653]
[1758505383249,0.89210735,114700.0,114690.0,0.0054]
[1758505383250,0.91553452,114700.0,114690.0,0.0054]
[1758505383450,0.91552978,114700.0,114690.0,0.22218653]
[1758505383852,0.91552978,114700.0,114690.0,0.30931673]
[1758505384445,0.91552978,114700.0,114690.0,0.22218653]
[1758505385850,0.91552978,114700.0,114690.0,0.30931683]
[1758505388856,0.91552978,114700.0,114690.0,0.0925303]
[1758505389050,0.91552978,114700.0,114690.0,0.30931683]
[1758505389841,0.44874325,114700.0,114690.0,0.52610336]
[1758505390046,0.08794325,114700.0,114690.0,0.30931683]
[1758505390242,0.08794325,114700.0,114690.0,0.52610336]
[1758505390448,0.08794325,114700.0,114690.0,0.30931683]
[1758505390652,0.08794325,114700.0,114690.0,0.67011683]
[1758505391052,0.08794325,114700.0,114690.0,0.30931683]
[1758505391252,0.08794325,114700.0,114690.0,0.67011683]
[1758505391650,0.23264325,114700.0,114690.0,0.67011683]
[1758505391850,0.08794325,114700.0,114690.0,0.67011683]
[1758505392954,0.44874325,114700.0,114690.0,1.11211683]
[1758505393154,0.44874325,114700.0,114690.0,0.30931683]
[1758505393354,0.44874325,114700.0,114690.0,1.11211683]
[1758505395149,0.08794325,114700.0,114690.0,1.11211683]
[1758505395859,0.08798881,114700.0,114690.0,1.11211683]
[1758505396259,0.08798881,114700.0,114690.0,0.30931683]
[1758505396458,0.08798881,114700.0,114690.0,1.11207683]
[1758505397553,0.30477534,114700.0,114690.0,0.30931683]
[1758505397757,0.44878881,114700.0,114690.0,1.11207683]
[1758505397960,0.66557534,114700.0,114690.0,0.30931683]
[1758505398351,0.66557534,114700.0,114690.0,1.02494653]
[1758505398556,0.66557534,114700.0,114690.0,1.11167663]
[1758505398856,0.66557534,114700.0,114690.0,1.11207663]
[1758505399253,0.69690385,114700.0,114690.0,1.11207663]
[1758505400260,0.74353874,114700.0,114690.0,1.11207663]
[1758505400455,0.74353874,114700.0,114690.0,0.8952901]
[1758505400661,0.74353874,114700.0,114690.0,1.11207663]
[1758505400857,0.74453874,114700.0,114690.0,1.10707663]
[1758505404169,0.74453874,114700.0,114690.0,0.8902901]
[1758505404359,0.74453874,114700.0,114690.0,1.10707663]
[1758505404762,0.74453874,114700.0,114690.0,0.0004]
[1758505404958,0.74453874,114700.0,114690.0,0.80308]
[1758505405161,0.74453874,114700.0,114690.0,1.01986653]
[1758505405462,0.69790385,114700.0,114690.0,1.10699653]
[1758505406461,2.32881691,114700.0,114680.0,0.0008]
[1758505406667,0.03608,114670.0,114660.0,0.0049]
[1758505406859,0.03608,114670.0,114660.0,0.21678653]
[1758505406860,0.64503954,114670.0,114660.0,0.21678653]
[1758505407065,0.451721,114670.0,114660.0,0.52112586]
[1758505407366,0.42034799,114670.0,114660.0,0.43397306]
[1758505407865,0.4891653,114670.0,114660.0,0.43397306]
[1758505408164,0.4891653,114670.0,114660.0,0.43597306]
[1758505409065,0.4891653,114670.0,114660.0,0.0024]
[1758505409266,0.4891653,114670.0,114660.0,0.43597306]
[1758505409666,0.4891653,114670.0,114660.0,0.52312586]
[1758505410759,0.05954799,114670.0,114660.0,0.77312586]
[1758505410964,0.05894139,114670.0,114660.0,0.77312586]
[1758505413477,0.03608,114670.0,114660.0,1.13392586]
[1758505414964,0.61366653,114670.0,114660.0,0.0895528]
[1758505415166,0.63609653,114670.0,114660.0,1.10897933]
[1758505415470,0.63609653,114670.0,114660.0,1.10857933]
[1758505415773,0.61366653,114670.0,114660.0,1.32576586]
[1758505416373,0.68251164,114670.0,114660.0,1.32576586]
[1758505416963,0.68251164,114670.0,114660.0,0.52312586]
[1758505417271,0.46572511,114670.0,114660.0,1.32576586]
[1758505419074,0.10492511,114670.0,114660.0,1.32576586]
[1758505421169,0.10492511,114670.0,114660.0,0.52312586]
[1758505421372,0.10492511,114670.0,114660.0,1.32572586]
[1758505421573,0.37366,114680.0,114670.0,0.0871451]
[1758505421878,0.41929025,114680.0,114670.0,0.52071816]
[1758505422068,0.41929025,114680.0,114670.0,0.30393163]
[1758505422873,0.41929025,114680.0,114670.0,0.88151816]
[1758505422874,0.05849025,114680.0,114670.0,0.88151816]
[1758505423079,0.01376,114680.0,114670.0,1.13151816]
[1758505423878,0.01476,114680.0,114670.0,1.13151816]
[1758505426576,0.002,114680.0,114670.0,1.13151816]
[1758505427080,0.01476,114680.0,114670.0,1.93403816]
[1758505427879,0.01376,114680.0,114670.0,1.93403816]
[1758505428275,0.01376,114680.0,114670.0,1.13151816]
[1758505428481,0.01376,114680.0,114670.0,1.93403816]
[1758505428682,0.001,114680.0,114670.0,1.93403816]
[1758505429779,0.01286,114690.0,114680.0,0.087138]
[1758505429978,0.03608,114690.0,114680.0,0.88151106]
[1758505430781,0.03608,114690.0,114680.0,1.68399106]
[1758505431081,0.03608,114690.0,114680.0,1.68699106]
[1758505433485,0.03908,114690.0,114680.0,1.68399106]
[1758505434489,0.04008,114690.0,114680.0,1.68399106]
[1758505434882,0.01676,114690.0,114680.0,1.68399106]
[1758505435792,0.01676,114690.0,114680.0,1.68387106]
[1758505435996,0.03599,114690.0,114680.0,1.32307106]
[1758505436199,0.03599,114690.0,114680.0,1.32407106]
[1758505436696,0.03499,114690.0,114680.0,1.10729234]
[1758505437196,0.03699,114690.0,114680.0,1.10629234]
[1758505437385,0.03799,114690.0,114680.0,1.10629234]
[1758505440097,0.03799,114690.0,114680.0,0.087138]
[1758505440291,0.03799,114690.0,114680.0,1.10625234]
[1758505440492,0.03799,114690.0,114680.0,0.30393234]
[1758505440690,0.03799,114690.0,114680.0,1.10621234]
[1758505441394,0.06041912,114690.0,114680.0,1.10621234]
[1758505442598,0.06041912,114690.0,114680.0,0.30393234]
[1758505442800,0.06041912,114690.0,114680.0,1.10621234]
[1758505443395,0.05941912,114690.0,114680.0,1.10621234]
[1758505443602,0.03699,114690.0,114680.0,1.10621234]
[1758505444304,0.03799,114690.0,114680.0,1.10621234]
[1758505445799,0.03699,114690.0,114680.0,1.10621234]
[1758505445995,0.03499,114690.0,114680.0,1.10621234]
[1758505446194,0.03499,114690.0,114680.0,1.46801234]
[1758505446602,0.03499,114690.0,114680.0,1.46701234]
[1758505446806,0.03499,114690.0,114680.0,1.46801234]
[1758505447202,0.03499,114690.0,114680.0,1.46701234]
[1758505447403,0.03499,114690.0,114680.0,1.46801234]
[1758505447703,0.01276,114690.0,114680.0,1.46801234]
[1758505447897,0.42515267,114700.0,114690.0,0.0871304]
[1758505448201,0.44747616,114700.0,114690.0,0.30392474]
[1758505448402,0.08667616,114700.0,114690.0,0.30392474]
[1758505449206,0.06525267,114700.0,114690.0,0.30392474]
[1758505450302,0.06725267,114700.0,114690.0,0.30392474]
[1758505450606,0.06725267,114700.0,114690.0,0.66472474]
[1758505451599,0.04502267,114700.0,114690.0,0.88151908]
[1758505452402,0.06608267,114700.0,114690.0,0.88151908]
[1758505453005,0.06608267,114700.0,114690.0,1.68359908]
[1758505454207,0.06608267,114700.0,114690.0,0.88151908]
[1758505454408,0.06608267,114700.0,114690.0,1.68359908]
[1758505455007,0.06608267,114700.0,114690.0,0.88151908]
[1758505455204,0.06608267,114700.0,114690.0,1.68355908]
[1758505456408,0.06608267,114700.0,114690.0,1.68351908]
[1758505456610,0.06608267,114700.0,114690.0,1.2499304]
[1758505456909,0.06608267,114700.0,114690.0,1.46672474]
[1758505459312,0.06608267,114700.0,114690.0,0.66472474]
[1758505459512,0.06608267,114700.0,114690.0,1.46668474]
[1758505461916,0.06608267,114700.0,114690.0,0.66472474]
[1758505462224,0.06608267,114700.0,114690.0,1.46664474]
[1758505463911,0.06608267,114700.0,114690.0,1.2498504]
[1758505464116,0.06608267,114700.0,114690.0,1.46660474]
[1758505465417,0.06608267,114700.0,114690.0,1.2498104]
[1758505465716,0.06608267,114700.0,114690.0,1.46660474]
[1758505467415,0.21078267,114700.0,114690.0,1.46660474]
[1758505467618,0.06608267,114700.0,114690.0,1.46660474]
[1758505468119,0.06608267,114700.0,114690.0,1.68339908]
[1758505468620,0.06608267,114700.0,114690.0,1.46660474]
[1758505470113,0.06608267,114700.0,114690.0,1.46648474]
[1758505470314,0.06608267,114700.0,114690.0,0.66472474]
[1758505470515,0.06608267,114700.0,114690.0,1.46648474]
[1758505473620,0.08850175,114700.0,114690.0,1.46648474]
[1758505475615,0.44930175,114700.0,114690.0,0.0871304]
[1758505475815,0.44930175,114700.0,114690.0,1.10564474]
[1758505476019,0.44930175,114700.0,114690.0,0.8888504]
[1758505476225,0.44930175,114700.0,114690.0,1.10564474]
[1758505476823,0.44930175,114700.0,114690.0,0.30392474]
[1758505477322,0.69930175,114700.0,114690.0,1.10560474]
[1758505477521,0.69930175,114700.0,114690.0,1.10600474]
[1758505478622,0.69930175,114700.0,114690.0,0.8892104]
[1758505478821,0.69930175,114700.0,114690.0,1.10600474]
[1758505479324,0.44930175,114700.0,114690.0,1.10600474]
[1758505480224,0.69930175,114700.0,114690.0,0.8892104]
[1758505488533,0.91609609,114700.0,114690.0,0.80208]
[1758505488833,0.66609609,114700.0,114690.0,0.0004]
[1758505489127,0.03673,114690.0,114680.0,1.10625194]
[1758505489328,0.39753,114690.0,114680.0,1.10625194]
[1758505491133,0.39853,114690.0,114680.0,1.10625194]
[1758505491533,0.39853,114690.0,114680.0,1.10725194]
[1758505492028,0.40053,114690.0,114680.0,1.10625194]
[1758505498536,0.61734473,114690.0,114680.0,1.32308706]
[1758505501135,0.61734473,114690.0,114680.0,0.8894576]
[1758505501436,0.61734473,114690.0,114680.0,1.32308706]
[1758505502241,0.40053,114690.0,114680.0,1.32308706]
[1758505502735,0.01665,114690.0,114680.0,2.15070179]
[1758505502931,0.003,114690.0,114680.0,2.15070179]
[1758505503937,0.002,114690.0,114680.0,2.15070179]
[1758505505140,0.00878719,114700.0,114690.0,0.0871302]
[1758505505344,0.00868719,114700.0,114690.0,0.88155966]
[1758505505636,0.10206172,114710.0,114690.0,0.88155966]
[1758505505637,0.12352172,114710.0,114700.0,0.0871226]
[1758505505841,0.12342172,114710.0,114700.0,1.32199206]
[1758505506040,0.13195354,114710.0,114700.0,1.32199206]
[1758505506630,0.13195354,114710.0,114700.0,0.52075206]
[1758505506834,0.13195354,114710.0,114700.0,1.32199206]
[1758505507344,0.13295354,114710.0,114700.0,1.32199206]
[1758505507942,0.13595354,114710.0,114700.0,1.32199206]
[1758505508241,0.13595354,114710.0,114700.0,1.32195206]
[1758505511638,0.13595354,114710.0,114700.0,0.52075206]
[1758505511839,0.13595354,114710.0,114700.0,1.32187206]
[1758505512248,0.13595354,114710.0,114700.0,0.52075206]
[1758505512547,0.13595354,114710.0,114700.0,1.32183206]
[1758505514041,0.13595354,114710.0,114700.0,1.32179206]
[1758505516948,0.06724395,114710.0,114700.0,1.32179206]
[1758505517139,0.04578395,114710.0,114700.0,1.53860679]
[1758505517740,0.04578395,114710.0,114700.0,1.68259206]
[1758505518238,0.06765395,114710.0,114700.0,0.88155206]
[1758505518445,0.06765395,114710.0,114700.0,1.68251206]
[1758505518946,0.04578395,114710.0,114700.0,1.68251206]
[1758505519151,0.01253182,114710.0,114700.0,1.68251206]
[1758505519354,0.01253182,114710.0,114700.0,1.89932679]
[1758505520755,0.01253182,114710.0,114700.0,1.68251206]
[1758505521046,0.00953182,114710.0,114700.0,1.90032679]
[1758505521244,0.00853182,114710.0,114700.0,1.90032679]
[1758505521444,0.10391444,114720.0,114710.0,0.087115]
[1758505521649,0.03463,114720.0,114710.0,0.52074446]
[1758505522047,0.03463,114720.0,114710.0,1.10480973]
[1758505522748,0.03463,114720.0,114710.0,1.32162446]
[1758505523751,0.05697454,114720.0,114710.0,1.32162446]
[1758505523946,0.05997454,114720.0,114710.0,1.32162446]
[1758505524147,0.05997454,114720.0,114710.0,1.68242446]
[1758505524547,0.06097454,114720.0,114710.0,1.68242446]
[1758505524744,0.06971451,114720.0,114710.0,1.68242446]
[1758505525753,0.06971451,114720.0,114710.0,1.46552973]
[1758505526151,0.06971451,114720.0,114710.0,1.10472973]
[1758505526552,0.06971451,114720.0,114710.0,0.30392973]
[1758505526753,0.06971451,114720.0,114710.0,1.10468973]
[1758505527354,0.06971451,114720.0,114710.0,0.087115]
[1758505527554,0.28652924,114720.0,114710.0,1.10468973]
[1758505527754,0.06971451,114720.0,114710.0,1.10468973]
[1758505528354,0.21441451,114720.0,114710.0,1.10468973]
[1758505528543,0.06971451,114720.0,114710.0,1.10468973]
[1758505530155,0.03672,114710.0,114700.0,0.0871165]
[1758505530356,0.27587927,114710.0,114700.0,1.32226596]
[1758505530555,0.05906454,114710.0,114700.0,1.32226596]
[1758505530954,0.05906454,114710.0,114700.0,1.32146596]
[1758505531156,0.05906454,114710.0,114700.0,1.32186596]
[1758505532255,0.05906454,114710.0,114700.0,1.68566596]
[1758505533657,0.03672,114710.0,114700.0,1.68566596]
[1758505536363,0.03672,114710.0,114700.0,1.2520365]
[1758505536563,0.03672,114710.0,114700.0,1.68566596]
[1758505538063,0.03672,114710.0,114700.0,1.32486596]
[1758505539362,0.01389,114710.0,114700.0,1.68566596]
[1758505540567,0.0421449,114720.0,114710.0,0.087115]
[1758505540772,0.0420449,114720.0,114710.0,0.88154446]
[1758505541268,0.0648749,114720.0,114710.0,1.68210446]
[1758505541675,0.0658749,114720.0,114710.0,1.46528973]
[1758505544360,0.04532997,114720.0,114710.0,1.68210446]
[1758505544564,0.04532997,114720.0,114710.0,0.88154446]
[1758505544771,0.00973997,114720.0,114710.0,1.68206446]
[1758505545369,0.03199878,114720.0,114710.0,1.68206446]
[1758505546573,0.00973997,114720.0,114710.0,1.68206446]
[1758505547269,0.00973997,114720.0,114710.0,0.88154446]
[1758505547471,0.00973997,114720.0,114710.0,1.68198446]
[1758505547967,0.41761209,114750.0,114740.0,0.0870922]
[1758505548167,0.41761209,114750.0,114740.0,1.32116166]
[1758505548576,0.41801209,114750.0,114740.0,1.32116166]
[1758505548781,0.05721209,114750.0,114740.0,1.68196166]
[1758505550874,0.06595721,114750.0,114740.0,1.68196166]
[1758505552278,0.04312721,114750.0,114740.0,1.68196166]
[1758505554975,0.06445721,114750.0,114740.0,1.68180166]
[1758505555382,0.04312721,114750.0,114740.0,1.68180166]
[1758505555883,0.04272721,114750.0,114740.0,1.68180166]
[1758505556082,0.04312721,114750.0,114740.0,1.68180166]
[1758505558186,0.04312721,114750.0,114740.0,1.2481722]
[1758505558482,0.04312721,114750.0,114740.0,0.88152166]
[1758505558691,0.06445721,114750.0,114740.0,1.2480522]
[1758505558979,0.06445721,114750.0,114740.0,1.46459184]
[1758505559188,0.06445721,114750.0,114740.0,0.66443184]
[1758505559373,0.06445721,114750.0,114740.0,1.46459184]
[1758505561088,0.06445721,114750.0,114740.0,0.66443184]
[1758505561290,0.06445721,114750.0,114740.0,1.46455184]
[1758505562293,0.06445721,114750.0,114740.0,0.66443184]
[1758505562679,0.28099685,114750.0,114740.0,0.8871722]
[1758505562885,0.03502,114740.0,114730.0,0.66523354]
[1758505563087,0.03502,114740.0,114730.0,1.46531354]
[1758505563392,0.03502,114740.0,114730.0,1.46451354]
[1758505564080,0.03502,114740.0,114730.0,1.46491354]
[1758505564590,0.03502,114740.0,114730.0,0.66483354]
[1758505564793,0.03502,114740.0,114730.0,0.8905339]
[1758505564794,0.05717315,114740.0,114730.0,0.8905339]
[1758505565693,0.88451279,114740.0,114730.0,0.0034]
[1758505565892,0.88451279,114740.0,114730.0,0.003]
[1758505566084,0.9158858,114740.0,114730.0,0.0004]
[1758505566290,0.9158858,114740.0,114730.0,0.0034]
[1758505566785,0.9158858,114740.0,114730.0,0.0004]
[1758505567093,0.9188858,114740.0,114730.0,0.0004]
[1758505567795,0.9188858,114740.0,114730.0,0.0874998]
[1758505568896,1.0635858,114740.0,114730.0,0.0874998]
[1758505570894,0.84704616,114740.0,114730.0,0.0874998]
[1758505571096,1.0635858,114740.0,114730.0,0.0874998]
[1758505571492,1.0635858,114740.0,114730.0,0.0004]
[1758505573800,1.03221279,114740.0,114730.0,0.0004]
[1758505579099,0.0139,114720.0,114710.0,1.46527024]
[1758505579296,0.0139,114720.0,114710.0,1.46517024]
[1758505579998,0.61332964,114720.0,114710.0,0.80072]
[1758505580200,0.61332964,114720.0,114710.0,0.887835]
[1758505580403,0.68311339,114720.0,114710.0,0.887035]
[1758505580605,0.68311339,114720.0,114710.0,0.890435]
[1758505581697,0.46657375,114720.0,114710.0,1.10697464]
[1758505582302,0.46657375,114720.0,114710.0,1.10397464]
[1758505584006,0.46657375,114720.0,114710.0,0.887435]
[1758505584709,0.10577375,114720.0,114710.0,1.10397464]
[1758505585198,0.0001,114730.0,114720.0,0.0871073]
[1758505585406,0.0001,114740.0,114730.0,0.0870997]
[1758505585706,0.20915721,114750.0,114740.0,0.0870921]
[1758505585905,0.20865721,114750.0,114740.0,0.30363174]
[1758505586406,0.20905721,114750.0,114740.0,0.30363174]
[1758505593117,0.80859139,114750.0,114740.0,0.0870921]
[1758505594008,0.80859139,114750.0,114740.0,0.0874921]
[1758505596601,0.59205175,114750.0,114740.0,0.0874921]
[1758505596917,0.80859139,114750.0,114740.0,0.0874921]
[1758505600112,0.80859139,114750.0,114740.0,0.0004]
[1758505601013,1.60815139,114750.0,114740.0,0.0004]
[1758505605019,1.60807139,114750.0,114740.0,0.0874921]
[1758505605720,1.39153175,114750.0,114740.0,0.0874921]
[1758505606212,1.39153175,114750.0,114740.0,0.30403174]
[1758505606616,0.59205175,114750.0,114740.0,0.30403174]
[1758505607315,0.59205175,114750.0,114740.0,0.0874921]
[1758505607514,0.59205175,114750.0,114740.0,0.30403174]
[1758505607918,0.20905721,114750.0,114740.0,0.30403174]
[1758505608916,0.20865721,114750.0,114740.0,0.30403174]
[1758505609117,0.20905721,114750.0,114740.0,0.30403174]
[1758505609708,0.20865721,114750.0,114740.0,0.30403174]
[1758505609914,0.20865721,114750.0,114740.0,0.66483174]
[1758505610121,0.20905721,114750.0,114740.0,0.66483174]
[1758505611419,0.06395721,114750.0,114740.0,0.66483174]
[1758505611609,0.06435721,114750.0,114740.0,0.66483174]
[1758505612111,0.06435721,114750.0,114740.0,0.30403174]
[1758505612310,0.42515721,114750.0,114740.0,0.0874921]
[1758505612513,0.66389337,114750.0,114740.0,0.0874921]
[1758505612711,0.44735373,114750.0,114740.0,0.0874921]
[1758505612907,0.44735373,114750.0,114740.0,0.0870921]
[1758505613113,0.44735373,114750.0,114740.0,0.0874921]
[1758505613713,0.44735373,114750.0,114740.0,0.30403174]
[1758505614106,0.08655373,114750.0,114740.0,0.30403174]
[1758505614309,0.08655373,114750.0,114740.0,0.66483174]
[1758505616615,0.08655373,114750.0,114740.0,0.30403174]
[1758505616816,0.11792674,114750.0,114740.0,0.30403174]
[1758505617320,0.47872674,114750.0,114740.0,0.0874921]
[1758505617508,0.69526638,114750.0,114740.0,0.0870921]
[1758505618205,0.69526638,114750.0,114740.0,0.0874921]
[1758505618619,0.69534325,114750.0,114740.0,0.30370861]
[1758505618812,0.69534325,114750.0,114740.0,0.30410861]
[1758505619312,0.84004325,114750.0,114740.0,0.30410861]
[1758505621014,0.84004325,114750.0,114740.0,0.21701651]
[1758505621220,0.84004325,114750.0,114740.0,0.0004]
[1758505621412,0.01364,114740.0,114730.0,0.30371351]
[1758505621618,0.63500303,114740.0,114730.0,0.30451351]
[1758505622921,0.63500303,114740.0,114730.0,0.30651351]
[1758505623815,0.63500303,114740.0,114730.0,0.30651661]
[1758505623816,0.61280651,114740.0,114730.0,0.30651661]
[1758505624016,0.99634828,114740.0,114730.0,0.0028]
[1758505624223,0.99634828,114740.0,114730.0,0.0899001]
[1758505624418,0.56311526,114740.0,114730.0,0.0871001]
[1758505624623,0.99734828,114740.0,114730.0,0.0875001]
[1758505625016,0.99834828,114740.0,114730.0,0.0875001]
[1758505625321,1.79754828,114740.0,114730.0,0.0875001]
[1758505625722,1.58093177,114740.0,114730.0,0.30411661]
[1758505625925,1.58093177,114740.0,114730.0,0.0875001]
[1758505626123,1.58093177,114740.0,114730.0,0.0004]
[1758505626423,0.56511526,114740.0,114730.0,0.30411621]
[1758505626615,1.58089177,114740.0,114730.0,0.30411621]
[1758505626915,1.58089177,114740.0,114730.0,0.30371621]
[1758505627324,1.58089177,114740.0,114730.0,0.30411621]
[1758505627821,1.79750828,114740.0,114730.0,0.21701651]
[1758505629830,1.79750828,114740.0,114730.0,0.0004]
[1758505630027,0.03532,114720.0,114710.0,1.1992111]
[1758505630220,0.25193651,114720.0,114710.0,1.41652761]
[1758505630525,0.03532,114720.0,114710.0,1.41572761]
[1758505630720,0.03532,114720.0,114710.0,1.41612761]
[1758505631126,0.03532,114720.0,114710.0,1.41812761]
[1758505632217,0.25193651,114720.0,114710.0,0.66692761]
[1758505632425,0.25193651,114720.0,114710.0,1.46568761]
[1758505632728,0.25193651,114720.0,114710.0,1.46608761]
[1758505633329,0.32191538,114720.0,114710.0,1.46608761]
[1758505633728,0.32291538,114720.0,114710.0,1.2474711]
[1758505633925,0.03532,114710.0,114690.0,0.52626768]
[1758505634130,0.03532,114700.0,114690.0,1.2470059]
[1758505634326,0.03532,114700.0,114690.0,1.46362241]
[1758505634928,0.03532,114700.0,114690.0,1.46402241]
[1758505635331,0.04404117,114700.0,114690.0,1.46602241]
[1758505635518,0.04404117,114700.0,114690.0,1.47102241]
[1758505635922,0.04404117,114700.0,114690.0,1.46902241]
[1758505636225,0.62145768,114700.0,114690.0,0.31114241]
[1758505636431,0.40484117,114700.0,114690.0,0.31074241]
[1758505636626,0.40484117,114700.0,114690.0,0.31114241]
[1758505637024,0.62145768,114700.0,114690.0,0.31114241]
[1758505637427,0.62145768,114700.0,114690.0,0.31074241]
[1758505637628,0.62145768,114700.0,114690.0,0.31114241]
[1758505637828,0.40484117,114700.0,114690.0,0.31114241]
[1758505638033,0.62145768,114700.0,114690.0,0.0945259]
[1758505638236,1.08807419,114700.0,114690.0,0.0074]